[Event "Titled Tuesday Blitz May 10 Early 2022"]
[White "Aaditya Dhingra"]
[Black "Keymer, Vincent"]
[WhiteFideId "25678191"]
[BlackFideId "12940690"]
[WhiteElo "1849"]
[BlackElo "2548"]
[Result "0-1"]
[Round "02"]
[TimeControl "180+1"]
[Date "2022.05.11"]
[WhiteClock "0:01:09"]
[BlackClock "0:02:20"]

1. e4 {[%clk 0:03:00]}  c6 {[%clk 0:03:00]} 2. Nc3 {[%clk 0:02:58]}  d5 {[%clk 0:03:00]} 3. Nf3 {[%clk 0:02:58]}  dxe4 {[%clk 0:03:00]} 4. Nxe4 {[%clk 0:02:58]}  Nf6 {[%clk 0:03:01]} 5. Qe2 {[%clk 0:02:57]}  Nxe4 {[%clk 0:03:01]} 6. Qxe4 {[%clk 0:02:57]}  Nd7 {[%clk 0:03:02]} 7. Bc4 {[%clk 0:02:56]}  Nf6 {[%clk 0:03:02]} 8. Ne5 {[%clk 0:02:56]}  e6 {[%clk 0:03:02]} 9. Qe2 {[%clk 0:02:55]}  b5 {[%clk 0:03:02]} 10. Nxc6 {[%clk 0:02:51]}  Qc7 {[%clk 0:02:41]} 11. Bxb5 {[%clk 0:02:41]}  a6 {[%clk 0:02:40]} 12. Ba4 {[%clk 0:01:57]}  Bd7 {[%clk 0:02:38]} 13. Qc4 {[%clk 0:01:52]}  Nd5 {[%clk 0:02:38]} 14. Na5 {[%clk 0:01:35]}  Qxa5 {[%clk 0:02:35]} 15. Bxd7+ {[%clk 0:01:34]}  Kxd7 {[%clk 0:02:36]} 16. O-O {[%clk 0:01:34]}  Rc8 {[%clk 0:02:35]} 17. Qe2 {[%clk 0:01:30]}  Rxc2 {[%clk 0:02:31]} 18. a3 {[%clk 0:01:28]}  Be7 {[%clk 0:02:25]} 19. b4 {[%clk 0:01:24]}  Qb5 {[%clk 0:02:24]} 20. Qg4 {[%clk 0:01:24]}  Bf6 {[%clk 0:02:23]} 21. Rb1 {[%clk 0:01:24]}  Qd3 {[%clk 0:02:21]} 22. a4 {[%clk 0:01:09]}  Rc4 {[%clk 0:02:20]} 0-1


[Site "https://www.chess.com"]

[Event "Titled Tuesday Blitz May 10 Early 2022"]
[White "Abrahamyan, Tatev"]
[Black "Broca Jimenez, Fernando"]
[WhiteFideId "13301918"]
[BlackFideId "5104742"]
[WhiteElo "2352"]
[BlackElo "2062"]
[Result "1-0"]
[Round "02"]
[TimeControl "180+1"]
[Date "2022.05.11"]
[WhiteClock "0:01:11"]
[BlackClock "0:00:42"]

1. Nf3 {[%clk 0:03:00]}  g6 {[%clk 0:02:55]} 2. g3 {[%clk 0:02:56]}  Bg7 {[%clk 0:02:56]} 3. Bg2 {[%clk 0:02:57]}  Nf6 {[%clk 0:02:55]} 4. O-O {[%clk 0:02:57]}  O-O {[%clk 0:02:48]} 5. c4 {[%clk 0:02:57]}  b6 {[%clk 0:02:44]} 6. Nc3 {[%clk 0:02:57]}  Bb7 {[%clk 0:02:44]} 7. d4 {[%clk 0:02:57]}  Na6 {[%clk 0:02:39]} 8. Re1 {[%clk 0:02:52]}  c5 {[%clk 0:02:38]} 9. d5 {[%clk 0:02:52]}  d6 {[%clk 0:02:34]} 10. e4 {[%clk 0:02:51]}  e5 {[%clk 0:02:32]} 11. dxe6 {[%clk 0:02:44]}  fxe6 {[%clk 0:02:32]} 12. Ng5 {[%clk 0:02:26]}  Qe7 {[%clk 0:02:22]} 13. e5 {[%clk 0:02:05]}  Bxg2 {[%clk 0:02:20]} 14. exf6 {[%clk 0:01:57]}  Bxf6 {[%clk 0:02:21]} 15. Nxe6 {[%clk 0:01:41]}  Rfe8 {[%clk 0:01:55]} 16. Kxg2 {[%clk 0:01:29]}  Qd7 {[%clk 0:01:16]} 17. Nf4 {[%clk 0:01:20]}  Bxc3 {[%clk 0:00:50]} 18. bxc3 {[%clk 0:01:18]}  Nc7 {[%clk 0:00:51]} 19. Be3 {[%clk 0:01:16]}  Rad8 {[%clk 0:00:46]} 20. Nd5 {[%clk 0:01:14]}  Nxd5 {[%clk 0:00:41]} 21. Qxd5+ {[%clk 0:01:13]}  Qf7 {[%clk 0:00:42]} 22. Rad1 {[%clk 0:01:11]} 1-0


[Site "https://www.chess.com"]

[Event "Titled Tuesday Blitz May 10 Early 2022"]
[White "Golubova, Anna"]
[Black "Melian, Juan Sebastian"]
[WhiteFideId "24173606"]
[BlackFideId "3706575"]
[WhiteElo "2083"]
[BlackElo "1851"]
[Result "0-1"]
[Round "02"]
[TimeControl "180+1"]
[Date "2022.05.11"]
[WhiteClock "0:00:33"]
[BlackClock "0:00:33"]

1. d4 {[%clk 0:03:00]}  Nf6 {[%clk 0:02:59]} 2. Bf4 {[%clk 0:03:01]}  e6 {[%clk 0:02:58]} 3. e3 {[%clk 0:03:01]}  d5 {[%clk 0:02:59]} 4. Nd2 {[%clk 0:02:57]}  Bd6 {[%clk 0:02:59]} 5. Bg3 {[%clk 0:02:57]}  c5 {[%clk 0:02:58]} 6. c3 {[%clk 0:02:57]}  Qc7 {[%clk 0:02:57]} 7. dxc5 {[%clk 0:02:56]}  Qxc5 {[%clk 0:02:51]} 8. Ngf3 {[%clk 0:02:56]}  Bxg3 {[%clk 0:02:46]} 9. hxg3 {[%clk 0:02:56]}  Nc6 {[%clk 0:02:45]} 10. Bd3 {[%clk 0:02:55]}  b6 {[%clk 0:02:38]} 11. Qe2 {[%clk 0:02:55]}  Bb7 {[%clk 0:02:36]} 12. Rd1 {[%clk 0:02:54]}  O-O-O {[%clk 0:02:36]} 13. O-O {[%clk 0:02:48]}  e5 {[%clk 0:02:32]} 14. e4 {[%clk 0:02:47]}  d4 {[%clk 0:02:32]} 15. Nb3 {[%clk 0:02:41]}  Qe7 {[%clk 0:02:27]} 16. cxd4 {[%clk 0:02:40]}  Nxd4 {[%clk 0:02:25]} 17. Nbxd4 {[%clk 0:02:16]}  exd4 {[%clk 0:02:26]} 18. Rfe1 {[%clk 0:02:07]}  Kb8 {[%clk 0:02:04]} 19. e5 {[%clk 0:02:07]}  Nd7 {[%clk 0:01:53]} 20. Ba6 {[%clk 0:01:08]}  d3 {[%clk 0:01:49]} 21. Bxd3 {[%clk 0:00:59]}  Nc5 {[%clk 0:01:48]} 22. Bc4 {[%clk 0:00:54]}  Rxd1 {[%clk 0:01:26]} 23. Rxd1 {[%clk 0:00:53]}  Bxf3 {[%clk 0:01:20]} 24. Qxf3 {[%clk 0:00:53]}  Qxe5 {[%clk 0:01:18]} 25. Qxf7 {[%clk 0:00:51]}  Qc7 {[%clk 0:00:49]} 26. Qd5 {[%clk 0:00:39]}  Nb7 {[%clk 0:00:42]} 27. Ba6 {[%clk 0:00:33]}  Rd8 {[%clk 0:00:35]} 28. Qxb7+ {[%clk 0:00:31]}  Qxb7 {[%clk 0:00:33]} 29. Rxd8+ {[%clk 0:00:32]}  Qc8 {[%clk 0:00:32]} 30. Bb7 {[%clk 0:00:33]}  Qxd8 {[%clk 0:00:33]} 0-1


[Site "https://www.chess.com"]

[Event "Titled Tuesday Blitz May 10 Early 2022"]
[White "Al-Tarboush, Ward"]
[Black "Daneshvar, Bardiya"]
[WhiteFideId "7601450"]
[BlackFideId "12576468"]
[WhiteElo "2294"]
[BlackElo "2330"]
[Result "1-0"]
[Round "02"]
[TimeControl "180+1"]
[Date "2022.05.10"]
[WhiteClock "0:00:27"]
[BlackClock "0:00:53"]

1. e4 {[%clk 0:03:00]}  Nf6 {[%clk 0:02:59]} 2. e5 {[%clk 0:03:00]}  Nd5 {[%clk 0:02:59]} 3. d4 {[%clk 0:03:00]}  d6 {[%clk 0:02:58]} 4. Nf3 {[%clk 0:03:00]}  g6 {[%clk 0:02:58]} 5. Bc4 {[%clk 0:02:58]}  Nb6 {[%clk 0:02:58]} 6. Bb3 {[%clk 0:02:56]}  Bg7 {[%clk 0:02:58]} 7. O-O {[%clk 0:02:46]}  O-O {[%clk 0:02:54]} 8. exd6 {[%clk 0:02:38]}  cxd6 {[%clk 0:02:43]} 9. h3 {[%clk 0:02:38]}  Nc6 {[%clk 0:02:39]} 10. c3 {[%clk 0:02:38]}  Bf5 {[%clk 0:02:27]} 11. Re1 {[%clk 0:02:32]}  Rc8 {[%clk 0:02:24]} 12. Nbd2 {[%clk 0:02:31]}  e5 {[%clk 0:02:08]} 13. d5 {[%clk 0:01:46]}  Na5 {[%clk 0:01:54]} 14. Nf1 {[%clk 0:01:45]}  Nxb3 {[%clk 0:01:50]} 15. axb3 {[%clk 0:01:45]}  a6 {[%clk 0:01:45]} 16. Ng3 {[%clk 0:01:38]}  Bd7 {[%clk 0:01:44]} 17. Ne4 {[%clk 0:01:22]}  Qe7 {[%clk 0:01:35]} 18. c4 {[%clk 0:01:22]}  f5 {[%clk 0:01:34]} 19. Bg5 {[%clk 0:01:22]}  Bf6 {[%clk 0:01:26]} 20. Nxf6+ {[%clk 0:01:19]}  Rxf6 {[%clk 0:01:27]} 21. Qd2 {[%clk 0:01:14]}  Na8 {[%clk 0:01:18]} 22. Qb4 {[%clk 0:01:08]}  Rc7 {[%clk 0:01:10]} 23. Nxe5 {[%clk 0:00:54]}  Qg7 {[%clk 0:01:05]} 24. Nxd7 {[%clk 0:00:47]}  Rxd7 {[%clk 0:00:59]} 25. Bxf6 {[%clk 0:00:42]}  Qxf6 {[%clk 0:01:00]} 26. Re8+ {[%clk 0:00:41]}  Kg7 {[%clk 0:01:00]} 27. Rxa8 {[%clk 0:00:40]}  Qxb2 {[%clk 0:01:01]} 28. Re1 {[%clk 0:00:37]}  f4 {[%clk 0:01:01]} 29. Rae8 {[%clk 0:00:35]}  f3 {[%clk 0:00:58]} 30. R8e7+ {[%clk 0:00:34]}  Rxe7 {[%clk 0:00:58]} 31. Rxe7+ {[%clk 0:00:35]}  Kh6 {[%clk 0:00:59]} 32. Qe1 {[%clk 0:00:27]}  fxg2 {[%clk 0:00:54]} 33. Qe3+ {[%clk 0:00:27]}  g5 {[%clk 0:00:54]} 34. Qe6+ {[%clk 0:00:27]}  Kh5 {[%clk 0:00:53]} 35. Rxh7# {[%clk 0:00:27]} 1-0


[Site "https://www.chess.com"]

[Event "Titled Tuesday Blitz May 10 Early 2022"]
[White "Arabidze, Meri"]
[Black "Bok, Benjamin"]
[WhiteFideId "13604040"]
[BlackFideId "1017063"]
[WhiteElo "2335"]
[BlackElo "2658"]
[Result "0-1"]
[Round "02"]
[TimeControl "180+1"]
[Date "2022.05.10"]
[WhiteClock "0:00:01"]
[BlackClock "0:00:09"]

1. Nf3 {[%clk 0:03:00]}  d5 {[%clk 0:02:59]} 2. b3 {[%clk 0:03:00]}  Bf5 {[%clk 0:02:57]} 3. Bb2 {[%clk 0:03:00]}  e6 {[%clk 0:02:58]} 4. e3 {[%clk 0:02:58]}  Nd7 {[%clk 0:02:56]} 5. c4 {[%clk 0:02:57]}  c6 {[%clk 0:02:55]} 6. Nc3 {[%clk 0:02:57]}  Ngf6 {[%clk 0:02:55]} 7. Be2 {[%clk 0:02:55]}  h6 {[%clk 0:02:54]} 8. O-O {[%clk 0:02:55]}  Bd6 {[%clk 0:02:54]} 9. h3 {[%clk 0:02:53]}  O-O {[%clk 0:02:54]} 10. Rc1 {[%clk 0:02:52]}  Qe7 {[%clk 0:02:54]} 11. cxd5 {[%clk 0:02:48]}  exd5 {[%clk 0:02:53]} 12. Nd4 {[%clk 0:02:46]}  Bh7 {[%clk 0:02:52]} 13. f4 {[%clk 0:02:43]}  Rfe8 {[%clk 0:02:48]} 14. Bg4 {[%clk 0:02:35]}  Nxg4 {[%clk 0:02:44]} 15. hxg4 {[%clk 0:02:31]}  Nf6 {[%clk 0:02:41]} 16. Nf5 {[%clk 0:02:12]}  Bxf5 {[%clk 0:02:40]} 17. gxf5 {[%clk 0:02:13]}  d4 {[%clk 0:02:28]} 18. exd4 {[%clk 0:01:59]}  Qd7 {[%clk 0:02:20]} 19. g4 {[%clk 0:01:19]}  h5 {[%clk 0:02:02]} 20. g5 {[%clk 0:01:08]}  Ng4 {[%clk 0:02:02]} 21. f6 {[%clk 0:01:04]}  Bf8 {[%clk 0:02:02]} 22. Na4 {[%clk 0:00:42]}  Qd5 {[%clk 0:01:42]} 23. Nc5 {[%clk 0:00:17]}  gxf6 {[%clk 0:00:56]} 24. gxf6 {[%clk 0:00:17]}  Nxf6 {[%clk 0:00:54]} 25. Nd3 {[%clk 0:00:14]}  Qf5 {[%clk 0:00:35]} 26. Ne5 {[%clk 0:00:13]}  Nd5 {[%clk 0:00:27]} 27. Qf3 {[%clk 0:00:12]}  f6 {[%clk 0:00:26]} 28. Nc4 {[%clk 0:00:10]}  Kf7 {[%clk 0:00:20]} 29. Rf2 {[%clk 0:00:10]}  Be7 {[%clk 0:00:16]} 30. Ne3 {[%clk 0:00:10]}  Rg8+ {[%clk 0:00:15]} 31. Kh2 {[%clk 0:00:08]}  Nxe3 {[%clk 0:00:14]} 32. dxe3 {[%clk 0:00:08]}  Rg4 {[%clk 0:00:14]} 33. Rg2 {[%clk 0:00:05]}  Rag8 {[%clk 0:00:13]} 34. Rxg4 {[%clk 0:00:03]}  Rxg4 {[%clk 0:00:12]} 35. Rg1 {[%clk 0:00:03]}  Rh4+ {[%clk 0:00:08]} 36. Kg2 {[%clk 0:00:03]}  Qc2+ {[%clk 0:00:09]} 37. Kf1 {[%clk 0:00:01]}  Qb1+ {[%clk 0:00:09]} 0-1


[Site "https://www.chess.com"]

[Event "Titled Tuesday Blitz May 10 Early 2022"]
[White "Arias, Juan Cruz"]
[Black "Sychev, Klementy"]
[WhiteFideId "118540"]
[BlackFideId "4114060"]
[WhiteElo "2091"]
[BlackElo "2564"]
[Result "0-1"]
[Round "02"]
[TimeControl "180+1"]
[Date "2022.05.10"]
[WhiteClock "0:01:58"]
[BlackClock "0:01:23"]

1. e4 {[%clk 0:03:00]}  c5 {[%clk 0:02:57]} 2. Nf3 {[%clk 0:03:00]}  d6 {[%clk 0:02:57]} 3. Nc3 {[%clk 0:02:57]}  Nf6 {[%clk 0:02:56]} 4. g3 {[%clk 0:02:57]}  Nc6 {[%clk 0:02:52]} 5. Bg2 {[%clk 0:02:58]}  g6 {[%clk 0:02:46]} 6. d3 {[%clk 0:02:58]}  Bg7 {[%clk 0:02:47]} 7. O-O {[%clk 0:02:58]}  O-O {[%clk 0:02:47]} 8. Nh4 {[%clk 0:02:57]}  Rb8 {[%clk 0:02:44]} 9. a4 {[%clk 0:02:57]}  a6 {[%clk 0:02:44]} 10. f4 {[%clk 0:02:56]}  Bg4 {[%clk 0:02:35]} 11. Qd2 {[%clk 0:02:55]}  Nd4 {[%clk 0:02:34]} 12. h3 {[%clk 0:02:54]}  Bd7 {[%clk 0:02:34]} 13. f5 {[%clk 0:02:54]}  e6 {[%clk 0:02:32]} 14. Qf2 {[%clk 0:02:44]}  exf5 {[%clk 0:02:28]} 15. exf5 {[%clk 0:02:30]}  Nxf5 {[%clk 0:02:25]} 16. Nxf5 {[%clk 0:02:29]}  Bxf5 {[%clk 0:02:08]} 17. g4 {[%clk 0:02:25]}  Be6 {[%clk 0:02:07]} 18. Bg5 {[%clk 0:02:20]}  Nxg4 {[%clk 0:02:07]} 19. Bxd8 {[%clk 0:02:10]}  Nxf2 {[%clk 0:02:07]} 20. Bc7 {[%clk 0:02:10]}  Nxh3+ {[%clk 0:02:03]} 21. Kh1 {[%clk 0:02:07]}  Bd4 {[%clk 0:01:52]} 22. Bxd6 {[%clk 0:02:06]}  Nf2+ {[%clk 0:01:52]} 23. Kh2 {[%clk 0:02:06]}  Rfd8 {[%clk 0:01:44]} 24. Bxb8 {[%clk 0:02:05]}  Rxb8 {[%clk 0:01:43]} 25. Bf3 {[%clk 0:02:04]}  h5 {[%clk 0:01:42]} 26. Ne2 {[%clk 0:02:04]}  Ng4+ {[%clk 0:01:37]} 27. Bxg4 {[%clk 0:02:04]}  Be5+ {[%clk 0:01:37]} 28. Kg2 {[%clk 0:02:02]}  hxg4 {[%clk 0:01:36]} 29. c3 {[%clk 0:01:58]}  Bd5+ {[%clk 0:01:32]} 30. Kg1 {[%clk 0:01:58]}  Kg7 {[%clk 0:01:32]} 31. d4 {[%clk 0:01:59]}  cxd4 {[%clk 0:01:29]} 32. cxd4 {[%clk 0:02:00]}  Bd6 {[%clk 0:01:27]} 33. Kf2 {[%clk 0:01:58]}  Rh8 {[%clk 0:01:26]} 34. Ke3 {[%clk 0:01:58]}  Rh3+ {[%clk 0:01:23]} 35. Kd2 {[%clk 0:01:58]}  g3 {[%clk 0:01:23]} 36. Rg1 {[%clk 0:01:58]}  g2 {[%clk 0:01:23]} 0-1


[Site "https://www.chess.com"]

[Event "Titled Tuesday Blitz May 10 Early 2022"]
[White "Aslanov, Umid"]
[Black "Soucek, Petr"]
[WhiteFideId "13412620"]
[BlackFideId "23715170"]
[WhiteElo "1796"]
[BlackElo "1979"]
[Result "1-0"]
[Round "02"]
[TimeControl "180+1"]
[Date "2022.05.11"]
[WhiteClock "0:00:23"]
[BlackClock "0:00:10"]

1. e4 {[%clk 0:03:00]}  c5 {[%clk 0:02:54]} 2. Nc3 {[%clk 0:02:57]}  Nc6 {[%clk 0:02:25]} 3. f4 {[%clk 0:02:55]}  e6 {[%clk 0:02:23]} 4. Bb5 {[%clk 0:02:54]}  Nge7 {[%clk 0:02:22]} 5. Nf3 {[%clk 0:02:50]}  a6 {[%clk 0:02:21]} 6. Bxc6 {[%clk 0:02:50]}  Nxc6 {[%clk 0:02:22]} 7. O-O {[%clk 0:02:50]}  b5 {[%clk 0:02:16]} 8. d3 {[%clk 0:02:45]}  Be7 {[%clk 0:02:02]} 9. Qe1 {[%clk 0:02:38]}  Bb7 {[%clk 0:01:44]} 10. Qg3 {[%clk 0:02:36]}  g6 {[%clk 0:01:42]} 11. f5 {[%clk 0:02:35]}  Qb6 {[%clk 0:01:17]} 12. Be3 {[%clk 0:02:10]}  O-O-O {[%clk 0:01:06]} 13. a4 {[%clk 0:02:00]}  b4 {[%clk 0:01:06]} 14. a5 {[%clk 0:01:59]}  Qc7 {[%clk 0:00:55]} 15. Bf4 {[%clk 0:01:49]}  d6 {[%clk 0:00:55]} 16. Na4 {[%clk 0:01:40]}  e5 {[%clk 0:00:52]} 17. Nb6+ {[%clk 0:01:36]}  Kb8 {[%clk 0:00:53]} 18. Bg5 {[%clk 0:01:30]}  Bxg5 {[%clk 0:00:51]} 19. Nxg5 {[%clk 0:01:28]}  h6 {[%clk 0:00:50]} 20. Nd5 {[%clk 0:01:26]}  Qd7 {[%clk 0:00:46]} 21. Nxf7 {[%clk 0:01:24]}  Qxf7 {[%clk 0:00:44]} 22. fxg6 {[%clk 0:01:24]}  Qe8 {[%clk 0:00:33]} 23. Rf7 {[%clk 0:01:23]}  Nd4 {[%clk 0:00:27]} 24. Qf2 {[%clk 0:01:17]}  Bxd5 {[%clk 0:00:25]} 25. exd5 {[%clk 0:01:16]}  Rg8 {[%clk 0:00:21]} 26. c3 {[%clk 0:01:07]}  Nb3 {[%clk 0:00:18]} 27. Rf1 {[%clk 0:00:54]}  Rxg6 {[%clk 0:00:18]} 28. cxb4 {[%clk 0:00:54]}  Qb5 {[%clk 0:00:10]} 29. Rf8 {[%clk 0:00:49]}  Rg8 {[%clk 0:00:09]} 30. Rxg8 {[%clk 0:00:44]}  Rxg8 {[%clk 0:00:09]} 31. Qf7 {[%clk 0:00:42]}  Rc8 {[%clk 0:00:09]} 32. Qe6 {[%clk 0:00:38]}  Rd8 {[%clk 0:00:09]} 33. Rf7 {[%clk 0:00:36]}  Nd4 {[%clk 0:00:07]} 34. Qe7 {[%clk 0:00:34]}  Ne2+ {[%clk 0:00:02]} 35. Kf2 {[%clk 0:00:32]}  Rd7 {[%clk 0:00:02]} 36. Qxd7 {[%clk 0:00:29]}  Qxd7 {[%clk 0:00:03]} 37. Rxd7 {[%clk 0:00:29]}  Nf4 {[%clk 0:00:04]} 38. Rxd6 {[%clk 0:00:28]}  Nxd3+ {[%clk 0:00:05]} 39. Ke3 {[%clk 0:00:28]}  Nxb4 {[%clk 0:00:06]} 40. Rb6+ {[%clk 0:00:27]}  Kc7 {[%clk 0:00:06]} 41. Rxb4 {[%clk 0:00:25]}  cxb4 {[%clk 0:00:07]} 42. Ke4 {[%clk 0:00:24]}  Kd6 {[%clk 0:00:08]} 43. g4 {[%clk 0:00:22]}  b3 {[%clk 0:00:08]} 44. h4 {[%clk 0:00:22]}  Kc5 {[%clk 0:00:07]} 45. Kxe5 {[%clk 0:00:22]}  Kb5 {[%clk 0:00:07]} 46. d6 {[%clk 0:00:23]}  Kxa5 {[%clk 0:00:08]} 47. d7 {[%clk 0:00:23]}  Kb4 {[%clk 0:00:09]} 48. d8=Q {[%clk 0:00:23]}  a5 {[%clk 0:00:09]} 49. Qb6+ {[%clk 0:00:24]}  Ka4 {[%clk 0:00:09]} 50. Qc5 {[%clk 0:00:22]}  h5 {[%clk 0:00:10]} 51. Qc4# {[%clk 0:00:23]} 1-0


[Site "https://www.chess.com"]

[Event "Titled Tuesday Blitz May 10 Early 2022"]
[White "Barp, Alberto"]
[Black "Buscar, Michael"]
[WhiteFideId "872555"]
[BlackFideId "2603616"]
[WhiteElo "2229"]
[BlackElo "2010"]
[Result "1-0"]
[Round "02"]
[TimeControl "180+1"]
[Date "2022.05.11"]
[WhiteClock "0:01:00"]
[BlackClock "0:00:04"]

1. d4 {[%clk 0:03:00]}  d5 {[%clk 0:02:58]} 2. Nf3 {[%clk 0:02:58]}  e6 {[%clk 0:02:57]} 3. Bf4 {[%clk 0:02:59]}  Nf6 {[%clk 0:02:54]} 4. e3 {[%clk 0:02:59]}  Nh5 {[%clk 0:02:54]} 5. Bg5 {[%clk 0:02:58]}  f6 {[%clk 0:02:52]} 6. Bh4 {[%clk 0:02:58]}  g5 {[%clk 0:02:53]} 7. Bg3 {[%clk 0:02:59]}  Nxg3 {[%clk 0:02:53]} 8. hxg3 {[%clk 0:02:55]}  Bd6 {[%clk 0:02:45]} 9. g4 {[%clk 0:02:52]}  Nc6 {[%clk 0:02:39]} 10. Bd3 {[%clk 0:02:47]}  Qe7 {[%clk 0:02:35]} 11. a3 {[%clk 0:02:38]}  Bd7 {[%clk 0:02:33]} 12. c4 {[%clk 0:02:30]}  dxc4 {[%clk 0:02:26]} 13. Bxc4 {[%clk 0:02:31]}  O-O-O {[%clk 0:02:23]} 14. Nfd2 {[%clk 0:02:29]}  f5 {[%clk 0:02:12]} 15. gxf5 {[%clk 0:02:20]}  exf5 {[%clk 0:02:13]} 16. Nc3 {[%clk 0:02:18]}  Nxd4 {[%clk 0:02:11]} 17. Nd5 {[%clk 0:02:16]}  Qe5 {[%clk 0:02:07]} 18. Kf1 {[%clk 0:02:06]}  Nc6 {[%clk 0:02:01]} 19. Nf3 {[%clk 0:02:04]}  Qxb2 {[%clk 0:01:50]} 20. Rb1 {[%clk 0:02:04]}  Qxa3 {[%clk 0:01:47]} 21. Ra1 {[%clk 0:01:56]}  Qc5 {[%clk 0:01:44]} 22. Rc1 {[%clk 0:01:56]}  g4 {[%clk 0:01:23]} 23. Ng5 {[%clk 0:01:49]}  Ne5 {[%clk 0:01:15]} 24. Bb3 {[%clk 0:01:44]}  Qb5+ {[%clk 0:01:05]} 25. Kg1 {[%clk 0:01:45]}  Qd3 {[%clk 0:01:06]} 26. Qxd3 {[%clk 0:01:23]}  Nxd3 {[%clk 0:01:05]} 27. Rc3 {[%clk 0:01:24]}  Ne5 {[%clk 0:00:56]} 28. Rxh7 {[%clk 0:01:23]}  Rxh7 {[%clk 0:00:54]} 29. Nxh7 {[%clk 0:01:24]}  Bc6 {[%clk 0:00:50]} 30. Nf4 {[%clk 0:01:20]}  a5 {[%clk 0:00:42]} 31. Be6+ {[%clk 0:01:19]}  Kb8 {[%clk 0:00:41]} 32. Bxf5 {[%clk 0:01:20]}  a4 {[%clk 0:00:39]} 33. Ng5 {[%clk 0:01:18]}  a3 {[%clk 0:00:38]} 34. Nge6 {[%clk 0:01:17]}  a2 {[%clk 0:00:32]} 35. Rc1 {[%clk 0:01:17]}  Ba3 {[%clk 0:00:24]} 36. Ra1 {[%clk 0:01:17]}  Rd2 {[%clk 0:00:25]} 37. Nd4 {[%clk 0:01:13]}  Nc4 {[%clk 0:00:13]} 38. Be6 {[%clk 0:01:10]}  b5 {[%clk 0:00:11]} 39. Nxc6+ {[%clk 0:01:09]}  Kb7 {[%clk 0:00:11]} 40. Nd4 {[%clk 0:01:02]}  Rb2 {[%clk 0:00:11]} 41. Kh2 {[%clk 0:01:01]}  c5 {[%clk 0:00:07]} 42. Nxb5 {[%clk 0:01:00]}  Rxf2 {[%clk 0:00:05]} 43. Bxc4 {[%clk 0:00:58]}  Bb4 {[%clk 0:00:06]} 44. Rxa2 {[%clk 0:00:58]}  Rxa2 {[%clk 0:00:05]} 45. Bxa2 {[%clk 0:00:59]}  Kb6 {[%clk 0:00:04]} 46. Nd6 {[%clk 0:01:00]} 1-0


[Site "https://www.chess.com"]

[Event "Titled Tuesday Blitz May 10 Early 2022"]
[White "Bifulco, Michel"]
[Black "Msellek, Ilyass"]
[WhiteFideId "828580"]
[BlackFideId "675938"]
[WhiteElo "2165"]
[BlackElo "2221"]
[Result "0-1"]
[Round "02"]
[TimeControl "180+1"]
[Date "2022.05.11"]
[WhiteClock "0:00:02"]
[BlackClock "0:00:22"]

1. d4 {[%clk 0:03:00]}  f5 {[%clk 0:02:56]} 2. Nc3 {[%clk 0:03:00]}  Nf6 {[%clk 0:02:55]} 3. Bg5 {[%clk 0:03:00]}  d5 {[%clk 0:02:55]} 4. e3 {[%clk 0:02:58]}  e6 {[%clk 0:02:53]} 5. Bd3 {[%clk 0:02:57]}  a6 {[%clk 0:02:51]} 6. h3 {[%clk 0:02:55]}  c5 {[%clk 0:02:49]} 7. Nf3 {[%clk 0:02:55]}  Nc6 {[%clk 0:02:48]} 8. Qd2 {[%clk 0:02:52]}  b5 {[%clk 0:02:40]} 9. O-O {[%clk 0:02:39]}  c4 {[%clk 0:02:38]} 10. Be2 {[%clk 0:02:39]}  b4 {[%clk 0:02:37]} 11. Nd1 {[%clk 0:02:38]}  Be7 {[%clk 0:02:32]} 12. Bxf6 {[%clk 0:02:38]}  Bxf6 {[%clk 0:02:32]} 13. a3 {[%clk 0:02:37]}  bxa3 {[%clk 0:02:12]} 14. Rxa3 {[%clk 0:02:37]}  g5 {[%clk 0:02:13]} 15. b3 {[%clk 0:02:34]}  g4 {[%clk 0:02:09]} 16. hxg4 {[%clk 0:02:33]}  fxg4 {[%clk 0:02:10]} 17. Nh2 {[%clk 0:02:32]}  Be7 {[%clk 0:02:02]} 18. Ra1 {[%clk 0:02:23]}  cxb3 {[%clk 0:01:51]} 19. cxb3 {[%clk 0:02:24]}  Bd6 {[%clk 0:01:41]} 20. Bxg4 {[%clk 0:02:20]}  Rg8 {[%clk 0:01:38]} 21. Bh3 {[%clk 0:02:19]}  Qh4 {[%clk 0:01:35]} 22. Kh1 {[%clk 0:02:11]}  Bd7 {[%clk 0:01:29]} 23. f4 {[%clk 0:02:04]}  Ne7 {[%clk 0:01:20]} 24. Nf3 {[%clk 0:01:54]}  Qh6 {[%clk 0:01:15]} 25. Ne5 {[%clk 0:01:48]}  Bb5 {[%clk 0:01:15]} 26. Rf3 {[%clk 0:01:41]}  Nf5 {[%clk 0:01:14]} 27. Qf2 {[%clk 0:01:25]}  Be7 {[%clk 0:01:14]} 28. Nc3 {[%clk 0:01:16]}  Rc8 {[%clk 0:00:55]} 29. Nxb5 {[%clk 0:01:13]}  axb5 {[%clk 0:00:56]} 30. Kh2 {[%clk 0:00:36]}  Bh4 {[%clk 0:00:55]} 31. Qe2 {[%clk 0:00:36]}  Bg3+ {[%clk 0:00:53]} 32. Kh1 {[%clk 0:00:35]}  Nd6 {[%clk 0:00:48]} 33. Kg1 {[%clk 0:00:14]}  Rg7 {[%clk 0:00:47]} 34. Ng4 {[%clk 0:00:11]}  Qh4 {[%clk 0:00:46]} 35. Rxg3 {[%clk 0:00:09]}  Qxg3 {[%clk 0:00:46]} 36. Nf6+ {[%clk 0:00:07]}  Kf7 {[%clk 0:00:45]} 37. Nh5 {[%clk 0:00:07]}  Qg6 {[%clk 0:00:35]} 38. Nxg7 {[%clk 0:00:07]}  Kxg7 {[%clk 0:00:36]} 39. Qg4 {[%clk 0:00:07]}  Nf5 {[%clk 0:00:30]} 40. Qxg6+ {[%clk 0:00:06]}  hxg6 {[%clk 0:00:28]} 41. Ra7+ {[%clk 0:00:05]}  Kf6 {[%clk 0:00:27]} 42. Bxf5 {[%clk 0:00:05]}  Kxf5 {[%clk 0:00:24]} 43. Kf2 {[%clk 0:00:05]}  Ke4 {[%clk 0:00:24]} 44. Re7 {[%clk 0:00:04]}  Rc2+ {[%clk 0:00:23]} 45. Kg3 {[%clk 0:00:05]}  Rc6 {[%clk 0:00:20]} 46. Re8 {[%clk 0:00:03]}  Kxe3 {[%clk 0:00:20]} 47. Re7 {[%clk 0:00:03]}  Kxd4 {[%clk 0:00:20]} 48. Kg4 {[%clk 0:00:04]}  Ke4 {[%clk 0:00:20]} 49. Kg5 {[%clk 0:00:04]}  d4 {[%clk 0:00:21]} 50. Kxg6 {[%clk 0:00:04]}  Rd6 {[%clk 0:00:21]} 51. Ra7 {[%clk 0:00:03]}  d3 {[%clk 0:00:21]} 52. Ra1 {[%clk 0:00:03]}  d2 {[%clk 0:00:21]} 53. Re1+ {[%clk 0:00:02]}  Kxf4 {[%clk 0:00:22]} 54. Rf1+ {[%clk 0:00:02]}  Kg3 {[%clk 0:00:22]} 55. Rd1 {[%clk 0:00:01]}  Kf2 {[%clk 0:00:22]} 56. Kf6 {[%clk 0:00:02]}  Ke2 {[%clk 0:00:22]} 0-1


[Site "https://www.chess.com"]